Workbook

Sheet паспорт
A1: ПАТ "УКРТРАНСГАЗ" | G1: ПАСПОРТ ФІЗИКО-ХІМІЧНИХ ПОКАЗНИКІВ ПРИРОДНОГО ГАЗУ № 607
A2: Філія "УМГ "ХАРКІВТРАНСГАЗ" | G2: переданого Запорізьким ЛВУМГ та прийнятого ПАТ "Дніпрогаз", ПАТ "Дніпропетровськгаз"
A3: Краснопільський п/м Запорізького ЛВУМГ | G3: Маршрут № 607
A4: Вимірювальна хіміко-аналітична лабораторія
A5: Свідоцтво № ПЧ 07-0/1548-2015 чинне до 10.06.2018р. | K5: по газопроводу ШДО-1а, ШДО-1б, ШДО-2, ШДКРІ | V5: за період з | X5: 2017-03-01 | Z5: по | AA5: 2017-03-31
A7: Число місяця | B7: Компонентний склад, % мол. | N7: Фізико-хімічні показники газу обчислені на основі компонентного складу, 101,325 кПа | X7: Температура точки роси за вологою (Р = 3.92 МПа), ºС | Y7: Температура точки роси за вуглеводнями, ºС | Z7: Вміст сірководню, г/м3 | AA7: Вміст меркаптанової сірки, г/м3 | AB7: Вміст механічних домішок, г/м3
N8: Густина абсолютна, кг/м3,при 20 ºС, | O8: Температура вимірювання/згоряння при 20/25°С
B9: метан, С1 | C9: етан, С2 | D9: пропан, С3 | E9: ізо-бутан, і-С4 | F9: н-бутан, н-С4 | G9: нео-пентан, нео-С5 | H9: ізо-пентан, і-С5 | I9: н-пентан, н-С5 | J9: гексани та вищі, С6+ | K9: кисень, О2 | L9: азот, N2 | M9: діоксид вуглецю, CО2 | O9: Теплота згоряння нижча | R9: Теплота згоряння вища | U9: Число Воббе вище
O10: ккал/м3 | P10: МДж/м3 | Q10: кВт⋅год/м3 | R10: ккал/м3 | S10: МДж/м3 | T10: кВт⋅год/м3 | U10: ккал/м3 | V10: МДж/м3 | W10: кВт⋅год/м3
A11: 1 | B11: 95.8886 | C11: 2.1631 | D11: 0.6684 | E11: 0.0995 | F11: 0.1098 | G11: 0.0035 | H11: 0.0241 | I11: 0.0177 | J11: 0.0297 | K11: 0.0096 | L11: 0.8161 | M11: 0.1698 | N11: 0.7005 | O11: =P11*238.8459 -> 8182.024573 | P11: 34.2565 | Q11: =P11/3.6 -> 9.515694444 | R11: =S11*238.8459 -> 9068.692208 | S11: 37.9688 | T11: =S11/3.6 -> 10.54688889 | U11: =V11*238.8459 -> 11891.77909 | V11: 49.7885 | W11: =V11/3.6 -> 13.83013889 | X11: -18.5 | Y11: -13.2 | AB11: відсутні | AC11: =SUM(B11:M11)+$K$42+$N$42 -> 99.9999
A12: 2 | B12: 95.7555 | C12: 2.2875 | D12: 0.6875 | E12: 0.1025 | F12: 0.1126 | G12: 0.0022 | H12: 0.0238 | I12: 0.0175 | J12: 0.0303 | K12: 0.0102 | L12: 0.7973 | M12: 0.173 | N12: 0.7014 | O12: =P12*238.8459 -> 8194.205714 | P12: 34.3075 | Q12: 9.529861111 | R12: =S12*238.8459 -> 9081.780963 | S12: 38.0236 | T12: 10.56211111 | U12: =V12*238.8459 -> 11900.61639 | V12: 49.8255 | W12: 13.84041667 | X12: -18.3 | Y12: -13.6 | AC12: 99.9999
A13: 3 | B13: 96.0493 | C13: 2.144 | D13: 0.6486 | E13: 0.0983 | F13: 0.1029 | G13: 0.0022 | H13: 0.0202 | I13: 0.0145 | J13: 0.0195 | K13: 0.0108 | L13: 0.7286 | M13: 0.161 | N13: 0.6989 | O13: 8179.277845 | P13: 34.245 | Q13: 9.5125 | R13: 9066.041018 | S13: 37.9577 | T13: 10.54380556 | U13: 11901.16574 | V13: 49.8278 | W13: 13.84105556 | X13: -20.4 | Y13: -15.2 | AC13: 99.9999 | AD13: =IF(AC13=100,"ОК"," ") -> 
A14: 4 | O14: 8179.277845 | P14: 34.245 | Q14: 9.5125 | R14: 9066.041018 | S14: 37.9577 | T14: =S15/3.6 -> 10.54380556 | U14: 11901.16574 | V14: 49.8278 | W14: 13.84105556 | AC14: 0 | AD14: =IF(AC14=100,"ОК"," ") -> 
A15: 5 | O15: 8179.277845 | P15: 34.245 | Q15: 9.5125 | R15: 9066.041018 | S15: 37.9577 | T15: 10.52 | U15: 11901.16574 | V15: 49.8278 | W15: 13.84105556 | AC15: 0
A16: 6 | B16: 95.6696 | C16: 2.3205 | D16: 0.6969 | E16: 0.1031 | F16: 0.1163 | G16: 0.0025 | H16: 0.025 | I16: 0.0188 | J16: 0.0345 | K16: 0.0103 | L16: 0.8281 | M16: 0.1742 | N16: 0.7022 | O16: 8197.66898 | P16: 34.322 | Q16: 9.533888889 | R16: 9085.411421 | S16: 38.0388 | T16: 10.56633333 | U16: 11899.11166 | V16: 49.8192 | W16: 13.83866667 | X16: -19.1 | Y16: -11.2 | AC16: 99.9998
A17: 7 | B17: 95.3093 | C17: 2.4642 | D17: 0.767 | E17: 0.1133 | F17: 0.1417 | G17: 0.0025 | H17: 0.0346 | I17: 0.0282 | J17: 0.0467 | K17: 0.0096 | L17: 0.8941 | M17: 0.1888 | N17: 0.7058 | O17: 8224.013683 | P17: 34.4323 | Q17: 9.564527778 | R17: 9113.356391 | S17: 38.1558 | T17: 10.59883333 | U17: 11905.32165 | V17: 49.8452 | W17: 13.84588889 | X17: -19.8 | Y17: -15.2 | AC17: 100 | AD17: ОК
A18: 8 | O18: 8224.013683 | P18: 34.4323 | Q18: 9.564527778 | R18: 9113.356391 | S18: 38.1558 | T18: =S18/3.6 -> 10.59883333 | U18: 11905.32165 | V18: 49.8452 | W18: 13.84588889 | AC18: 0
A19: 9 | B19: 95.8096 | C19: 2.2842 | D19: 0.6763 | E19: 0.1021 | F19: 0.11 | G19: 0.0027 | H19: 0.0238 | I19: 0.0171 | J19: 0.0307 | K19: 0.0096 | L19: 0.7663 | M19: 0.1676 | N19: 0.701 | O19: 8195.161098 | P19: 34.3115 | Q19: 9.530972222 | R19: 9082.927424 | S19: 38.0284 | T19: =S19/3.6 -> 10.56344444 | U19: 11905.60827 | V19: 49.8464 | W19: 13.84622222 | X19: -20.8 | Y19: -17.6 | AC19: 100 | AD19: ОК
A20: 10 | B20: 95.7664 | C20: 2.3033 | D20: 0.6884 | E20: 0.1042 | F20: 0.1121 | G20: 0.0018 | H20: 0.0236 | I20: 0.017 | J20: 0.031 | K20: 0.0091 | L20: 0.7707 | M20: 0.1723 | N20: 0.7014 | O20: 8197.764518 | P20: 34.3224 | Q20: 9.534 | R20: 9085.674151 | S20: 38.0399 | T20: 10.56663889 | U20: 11905.94265 | V20: 49.8478 | W20: 13.84661111 | X20: -20.6 | Y20: -16.9 | AC20: 99.9999
A21: 11 | O21: 8197.764518 | P21: 34.3224 | Q21: 9.534 | R21: 9085.674151 | S21: 38.0399 | T21: 10.56663889 | U21: 11905.94265 | V21: 49.8478 | W21: 13.84661111 | AC21: 0
A22: 12 | O22: 8197.764518 | P22: 34.3224 | Q22: 9.534 | R22: 9085.674151 | S22: 38.0399 | T22: 10.56663889 | U22: 11905.94265 | V22: 49.8478 | W22: 13.84661111 | AC22: 0
A23: 13 | B23: 95.2551 | C23: 2.5456 | D23: 0.772 | E23: 0.1148 | F23: 0.1306 | G23: 0.003 | H23: 0.0291 | I23: 0.022 | J23: 0.05 | K23: 0.0097 | L23: 0.8689 | M23: 0.1993 | N23: 0.706 | O23: 8227.357525 | P23: 34.4463 | Q23: 9.568416667 | R23: 9116.986849 | S23: 38.171 | T23: 10.60305556 | U23: 11908.40277 | V23: 49.8581 | W23: 13.84947222 | X23: -18 | Y23: -9.9 | AC23: 100.0001
A24: 14 | B24: 95.1723 | C24: 2.6012 | D24: 0.8034 | E24: 0.1209 | F24: 0.1374 | G24: 0.0022 | H24: 0.0314 | I24: 0.0244 | J24: 0.0476 | K24: 0.0088 | L24: 0.8476 | M24: 0.2027 | N24: 0.7068 | O24: 8238.869898 | P24: 34.4945 | Q24: 9.581805556 | R24: 9129.382951 | S24: 38.2229 | T24: 10.61747222 | U24: 11917.21618 | V24: 49.895 | W24: 13.85972222 | X24: -18.2 | Y24: -10.2 | Z24: < 0,0001 | AA24: 0.0021 | AC24: 99.9999
A25: 15 | B25: 95.1091 | C25: 2.6453 | D25: 0.8195 | E25: 0.1219 | F25: 0.1393 | G25: 0.0021 | H25: 0.0304 | I25: 0.0229 | J25: 0.0436 | K25: 0.0104 | L25: 0.8489 | M25: 0.2064 | N25: 0.7072 | O25: 8241.759933 | P25: 34.5066 | Q25: 9.585166667 | R25: 9132.464063 | S25: 38.2358 | T25: 10.62105556 | U25: 11918.00437 | V25: 49.8983 | W25: 13.86063889 | X25: -17.9 | Y25: -9.5 | AC25: 99.9998
A26: 16 | B26: 95.1436 | C26: 2.6282 | D26: 0.8061 | E26: 0.1191 | F26: 0.1367 | G26: 0.0027 | H26: 0.0301 | I26: 0.0224 | J26: 0.0458 | K26: 0.0102 | L26: 0.8474 | M26: 0.2078 | N26: 0.7069 | O26: 8237.795091 | P26: 34.49 | Q26: 9.580555556 | R26: 9128.690298 | S26: 38.22 | T26: 10.61666667 | U26: 11916.02195 | V26: 49.89 | W26: 13.85833333 | X26: -17.6 | Y26: -9.9 | AC26: 100.0001
A27: 17 | B27: 95.1388 | C27: 2.6258 | D27: 0.8018 | E27: 0.1182 | F27: 0.1345 | G27: 0.0021 | H27: 0.0292 | I27: 0.0217 | J27: 0.0428 | K27: 0.0112 | L27: 0.8632 | M27: 0.2107 | N27: 0.7068 | O27: 8234.379595 | P27: 34.4757 | Q27: 9.576583333 | R27: 9124.462726 | S27: 38.2023 | T27: 10.61175 | U27: 11911.19726 | V27: 49.8698 | W27: 13.85272222 | X27: -17.8 | Y27: -10.2 | AC27: 100 | AD27: ОК
A28: 18 | O28: 8234.379595 | P28: 34.4757 | Q28: 9.576583333 | R28: 9124.462726 | S28: 38.2023 | T28: 10.61175 | U28: 11911.19726 | V28: 49.8698 | W28: 13.85272222 | AC28: 0
A29: 19 | O29: 8234.379595 | P29: 34.4757 | Q29: 9.576583333 | R29: 9124.462726 | S29: 38.2023 | T29: 10.61175 | U29: 11911.19726 | V29: 49.8698 | W29: 13.85272222 | AC29: 0
A30: 20 | B30: 95.0446 | C30: 2.6914 | D30: 0.8312 | E30: 0.1229 | F30: 0.1403 | G30: 0.0027 | H30: 0.0302 | I30: 0.0229 | J30: 0.0493 | K30: 0.0117 | L30: 0.8447 | M30: 0.208 | N30: 0.7078 | O30: 8248.423734 | P30: 34.5345 | Q30: 9.592916667 | R30: 9139.605556 | S30: 38.2657 | T30: 10.62936111 | U30: 11922.04087 | V30: 49.9152 | W30: 13.86533333 | X30: -17.1 | Y30: -10.1 | AC30: 99.9999 | AD30: =IF(AC30=100,"ОК"," ") -> 
A31: 21 | O31: 8248.423734 | P31: 34.5345 | Q31: 9.592916667 | R31: 9139.605556 | S31: 38.2657 | T31: 10.62936111 | U31: 11922.04087 | V31: 49.9152 | W31: 13.86533333 | AC31: 0
A32: 22 | B32: 95.4619 | C32: 2.5062 | D32: 0.7754 | E32: 0.1203 | F32: 0.1282 | G32: 0.0021 | H32: 0.0266 | I32: 0.0195 | J32: 0.0361 | K32: 0.0092 | L32: 0.7314 | M32: 0.183 | N32: 0.7044 | O32: 8232.540481 | P32: 34.468 | Q32: 9.574444444 | R32: 9123.005766 | S32: 38.1962 | T32: 10.61005556 | U32: 11929.42121 | V32: 49.9461 | W32: 13.87391667 | X32: -17.4 | Y32: -10.6 | AC32: 99.9999
A33: 23 | B33: 95.3482 | C33: 2.5947 | D33: 0.7918 | E33: 0.1228 | F33: 0.1308 | G33: 0.0022 | H33: 0.0271 | I33: 0.0196 | J33: 0.0323 | K33: 0.0105 | L33: 0.7273 | M33: 0.1927 | N33: 0.7052 | O33: 8239.490897 | P33: 34.4971 | Q33: 9.582527778 | R33: 9130.409988 | S33: 38.2272 | T33: 10.61866667 | U33: 11932.28736 | V33: 49.9581 | W33: 13.87725 | X33: -17.9 | Y33: -11.1 | AB33: відсутні | AC33: 100 | AD33: =IF(AC33=100,"ОК"," ") -> ОК
A34: 24 | B34: 95.3089 | C34: 2.6187 | D34: 0.8041 | E34: 0.1253 | F34: 0.1331 | G34: 0.0027 | H34: 0.0271 | I34: 0.0197 | J34: 0.0313 | K34: 0.0102 | L34: 0.7254 | M34: 0.1935 | N34: 0.7056 | O34: 8243.336316 | P34: 34.5132 | Q34: 9.587 | R34: 9134.565907 | S34: 38.2446 | T34: 10.6235 | U34: 11934.72358 | V34: 49.9683 | W34: 13.88008333 | X34: -18.5 | Y34: -11.8 | AC34: 100 | AD34: ОК
A35: 25 | O35: 8243.336316 | P35: 34.5132 | Q35: 9.587 | R35: 9134.565907 | S35: 38.2446 | T35: 10.6235 | U35: 11934.72358 | V35: 49.9683 | W35: 13.88008333 | AC35: 0
A36: 26 | O36: 8243.336316 | P36: 34.5132 | Q36: 9.587 | R36: 9134.565907 | S36: 38.2446 | T36: 10.6235 | U36: 11934.72358 | V36: 49.9683 | W36: 13.88008333 | AC36: 0
A37: 27 | B37: 95.639 | C37: 2.488 | D37: 0.7906 | E37: 0.1276 | F37: 0.1247 | G37: 0.0022 | H37: 0.023 | I37: 0.0157 | J37: 0.0148 | K37: 0.0096 | L37: 0.5919 | M37: 0.173 | N37: 0.7029 | O37: 8237.484591 | P37: 34.4887 | Q37: 9.580194444 | R37: 9128.761952 | S37: 38.2203 | T37: 10.61675 | U37: 11949.43649 | V37: 50.0299 | W37: 13.89719444 | X37: -18.8 | Y37: -10 | AC37: 100.0001
A38: 28 | B38: 92.9242 | C38: 3.9656 | D38: 0.939 | E38: 0.1201 | F38: 0.1871 | G38: 0.0072 | H38: 0.0524 | I38: 0.0414 | J38: 0.0809 | K38: 0.0107 | L38: 1.4247 | M38: 0.2467 | N38: 0.7227 | O38: 8321.271733 | P38: 34.8395 | Q38: 9.677638889 | R38: 9215.65409 | S38: 38.5841 | T38: 10.71780556 | U38: 11897.20089 | V38: 49.8112 | W38: 13.83644444 | X38: -16.5 | Y38: -9.1 | AC38: 100
A39: 29 | B39: 94.5738 | C39: 2.9193 | D39: 0.971 | E39: 0.1407 | F39: 0.1801 | G39: 0.0031 | H39: 0.0407 | I39: 0.0322 | J39: 0.0648 | K39: 0.0095 | L39: 0.8369 | M39: 0.2279 | N39: 0.713 | O39: 8299.703948 | P39: 34.7492 | Q39: 9.652555556 | R39: 9194.492343 | S39: 38.4955 | T39: 10.69319444 | U39: 11950.65461 | V39: 50.035 | W39: 13.89861111 | X39: -17.1 | Y39: -10.2 | AC39: 100 | AD39: ОК
A40: 30 | B40: 95.5829 | C40: 2.4147 | D40: 0.7373 | E40: 0.1119 | F40: 0.1252 | G40: 0.0027 | H40: 0.0272 | I40: 0.0209 | J40: 0.0419 | K40: 0.0104 | L40: 0.7599 | M40: 0.1649 | N40: 0.7034 | O40: 8221.434147 | P40: 34.4215 | Q40: 9.561527778 | R40: 9111.087355 | S40: 38.1463 | T40: 10.59619444 | U40: 11922.44691 | V40: 49.9169 | W40: 13.86580556 | X40: -19.8 | Y40: -13.2 | Z40: < 0,0001 | AA40: 0.0015 | AC40: 99.9999
A41: 31 | B41: 95.3987 | C41: 2.5193 | D41: 0.765 | E41: 0.1168 | F41: 0.1294 | G41: 0.0024 | H41: 0.0283 | I41: 0.0212 | J41: 0.0454 | K41: 0.0113 | L41: 0.7852 | M41: 0.1768 | N41: 0.7049 | O41: 8231.44179 | P41: 34.4634 | Q41: 9.573166667 | R41: 9121.692113 | S41: 38.1907 | T41: 10.60852778 | U41: 11923.59337 | V41: 49.9217 | W41: 13.86713889 | X41: -20.1 | Y41: -13.7 | AC41: 99.9998
A42: Рівень одоризації відповідає чинним нормативним документам | O42: 8224 | P42: 34.43 | Q42: 9.56 | R42: 9113 | S42: 38.15 | T42: 10.6
H43: Середньозважене значення теплоти згоряння:
B46: Начальник управління Запорізького ЛВУМГ Дереновський О.Б.
C47: Підрозділу підприємства, якому підпорядкована лабораторія | O47: прізвище | S47: підпис | V47: дата
B48: Завідувач лабораторії Огородник Ю.В.
C49: Лабораторія, де здійснювалось вимірювання газу | O49: прізвище | S49: підпис | V49: дата
B50: Інженер провідний дільниці служби ГВ та М Свинаренко Р.В.
C51: Підрозділу, відповідального за облік газу за маршрутом | O51: прізвище | S51: підпис | V51: дата

Sheet додаток
A2: Додаток до Паспорту фізико-хімічних показників природного газу № 607
A4: Область | B4: ГРС, прямий споживач | C4: Cередньозважене значення вищої теплоти згоряння
C5: МДж/м³ | D5: ккал/м³ | E5: кВт*год./м³
A6: Дніпропетровська область | B6: ГРС п/ф " За мир" с.Краснопілля | C6: 38.16 | D6: 9114 | E6: 10.6
B7: ГРС с. Попасне | C7: 38.16 | D7: 9114 | E7: 10.6
B8: ГРС с. Вербки | C8: 38.16 | D8: 9115 | E8: 10.6
B9: ГРС м. Тернівка | C9: 38.16 | D9: 9114 | E9: 10.6
B10: ГРС смт.Петропавлівка | C10: 38.16 | D10: 9114 | E10: 10.6
B11: ГРС смт. Водолазьке | C11: 38.16 | D11: 9115 | E11: 10.6
B12: ГРС смт. Межова | C12: 38.16 | D12: 9114 | E12: 10.6
B13: ГРС м. Павлоград | C13: 38.16 | D13: 9114 | E13: 10.6
B14: ГРС с. Булахівка(р-п Україна) | C14: 38.16 | D14: 9115 | E14: 10.6
B15: ГРС с. Октябрьське (Енгельса) | C15: 38.16 | D15: 9114 | E15: 10.6
B16: ГРС смт. Синельникове | C16: 38.16 | D16: 9114 | E16: 10.6
B17: ГРС. c. Катеринівка | C17: 38.16 | D17: 9114 | E17: 10.6
B18: ГРС смт. Васильківка | C18: 38.16 | D18: 9114 | E18: 10.6
B19: ГРС с. Романки (к-п Победа) | C19: 38.16 | D19: 9114 | E19: 10.6
B20: ГРС с. Покровка | C20: 38.16 | D20: 9114 | E20: 10.6
B21: ГРС смт.Просяна | C21: 38.16 | D21: 9114 | E21: 10.6
B22: ГРС смт. Славгород | C22: 38.16 | D22: 9114 | E22: 10.6
B23: ГРС с. Варварівка | C23: 38.16 | D23: 9115 | E23: 10.6
B24: ГРС-1 м. Новомосковськ | C24: 38.16 | D24: 9114 | E24: 10.6
B25: ГРС с. Любимівка | C25: 38.16 | D25: 9114 | E25: 10.6
B26: ГРС смт. Солоне | C26: 38.16 | D26: 9114 | E26: 10.6
B27: ГРС с. Володимирівка | C27: 38.16 | D27: 9114 | E27: 10.6
B28: ГРС смт.Томаківка | C28: 38.16 | D28: 9115 | E28: 10.6
B29: ГРС Аеропорт | C29: 38.16 | D29: 9113 | E29: 10.6
B30: ГРС 6 м. Дніпро | C30: =-D30 -> 0 | D30: 0 | E30: 0
B31: ГРС Придніпровська | C31: 38.13 | D31: 9107 | E31: 10.59
B32: ГРС Красноармійська | C32: 38.15 | D32: 9112 | E32: 10.6
B33: ГРС с. Юр'ївка (Павлоградська КС) | C33: 38.16 | D33: 9115 | E33: 10.6
B34: ГРС 7 м. Дніпро | C34: 38.14 | D34: 9111 | E34: 10.6
B35: ПАТ "Інтерпайп Новомосковський трубний завод" | C35: 38.16 | D35: 9115 | E35: 10.6
B36: РВУ "Харківавтогаз" | C36: 38.16 | D36: 9114 | E36: 10.6
B37: ДП "ВО ПМЗ ім. О.М. Макарова" | C37: 38.12 | D37: 9104 | E37: 10.59
A38: Середньозважене значення вищої теплоти згоряння по маршруту № 607 | C38: 38.15 | D38: 9113 | E38: 10.6
A42: Начальник управління Запорізького ЛВУМГ Дереновський О.Б.
A43: Підрозділу підприємства, якому підпорядкована лабораторія | D43: прізвище | E43: підпис | F43: дата
A45: Завідувач лабораторії Огородник Ю.В.
A46: Лабораторія, де здійснювалось вимірювання газу | D46: прізвище | E46: підпис | F46: дата
A48: Інженер провідний дільниці служби ГВ та М Свинаренко Р.В.
A49: Підрозділу, відповідального за облік газу за маршрутом | D49: прізвище | E49: підпис | F49: дата

Sheet variablesList (hidden)
A1: 3 | B1: x:\gaysin | C1: 10, 11, 24, 25, 127, 128, 132, 180, 207, 215 | D1: x:\
B2: x:\Illinci
B3: x:\Talne

Sheet Лист1
